bitfinex/quotes_ETHUSD_20240729
["timestamp","ask_amount","ask_price","bid_price","bid_amount"]
[1722272205560,0.55,3278.7,3278.1,3.0505]
[1722272205773,0.55,3278.7,3278.0,3.05063]
[1722272205774,0.55,3278.7,3278.2,3.05042]
[1722272206005,3.04994,3278.8,3278.0,3.05055]
[1722272206211,3.4167214,3278.7,3278.0,3.05058]
[1722272206361,3.4167214,3278.7,3278.0,3.05057]
[1722272206699,3.04994,3278.8,3278.0,3.05057]
[1722272207101,3.04994,3278.8,3278.0,6.10113]
[1722272207306,3.04999,3278.7,3278.0,3.05056]
[1722272207464,3.04999,3278.7,3278.1,3.05053]
[1722272208106,3.0502,3278.5,3277.8,3.05077]
[1722272208274,3.0502,3278.5,3277.6,3.05099]
[1722272208275,3.05027,3278.4,3277.7,3.05088]
[1722272208703,3.0502,3278.5,3277.8,3.0508]
[1722272208909,3.0502,3278.5,3277.9,3.05067]
[1722272209269,3.0502,3278.5,3277.9,6.10133]
[1722272209472,3.0502,3278.5,3277.9,3.05066]
[1722272209694,0.55,3278.6,3278.1,3.05053]
[1722272210202,3.6001,3278.6,3277.9,3.05066]
[1722272210512,3.6001,3278.6,3278.0,3.05062]
[1722272211007,3.6001,3278.6,3277.8,3.05073]
[1722272211312,3.41023,3278.5,3277.8,3.05073]
[1722272211525,0.36001,3278.5,3277.9,3.05072]
[1722272211733,3.41019,3278.5,3277.9,3.05072]
[1722272211941,0.36001,3278.5,3277.9,3.05072]
[1722272212088,3.6001,3278.6,3277.9,3.05072]
[1722272212289,3.6001,3278.6,3277.9,3.05067]
[1722272212502,3.05017,3278.5,3277.9,3.05067]
[1722272213023,6.10042,3278.5,3277.8,3.05082]
[1722272213228,6.10041,3278.5,3277.8,3.05082]
[1722272213526,3.05017,3278.5,3277.8,3.05082]
[1722272214528,6.10041,3278.5,3277.8,3.05082]
[1722272214690,3.715211,3278.5,3277.5,3.05105]
[1722272214892,3.715211,3278.5,3277.6,3.0]
[1722272214893,3.05041,3278.3,3277.6,3.0]
[1722272215205,3.05041,3278.3,3277.5,3.05105]
[1722272215206,3.05046,3278.2,3277.5,6.10208]
[1722272215397,3.05046,3278.2,3277.5,3.05103]
[1722272215642,0.305046,3278.2,3277.6,3.05094]
[1722272215793,3.05036,3278.3,3277.7,3.05087]
[1722272215993,3.05036,3278.3,3277.6,3.05094]
[1722272215994,0.55,3278.4,3277.8,3.05082]
[1722272216303,3.60028,3278.4,3277.8,3.05082]
[1722272217999,3.60028,3278.4,3277.6,3.05093]
[1722272218000,3.05036,3278.3,3277.6,3.05093]
[1722272218248,3.05061,3278.1,3277.3,3.05990744]
[1722272218390,3.05069,3278.0,3277.4,1.06151748]
[1722272218592,3.05056,3278.1,3277.5,3.0511]
[1722272219249,3.05052,3278.2,3277.5,3.0511]
[1722272219455,0.55,3278.1,3277.5,3.0511]
[1722272219607,0.55,3278.1,3277.5,3.05105]
[1722272219810,0.55,3278.3,3277.6,3.05095]
[1722272220047,1.091392,3278.3,3277.6,3.05095]
[1722272220252,3.05045,3278.2,3277.4,3.05111]
[1722272220557,3.6006,3278.1,3277.1,0.63990744]
[1722272220713,3.6006,3278.1,3277.3,3.05121]
[1722272220714,3.41075,3278.0,3277.3,3.05121]
[1722272221066,3.41075,3278.0,3277.3,3.11222833]
[1722272221266,3.05069,3278.0,3277.4,3.05119]
[1722272221571,3.05069,3278.0,3277.4,3.05118]
[1722272222210,0.55,3278.1,3277.5,3.0511]
[1722272222687,2.3636,3278.5,3277.5,0.06101831]
[1722272222877,2.3638,3278.8,3277.7,3.0509]
[1722272223157,2.3638,3278.8,3278.1,3.05054]
[1722272223372,3.05014,3278.6,3277.8,0.30509]
[1722272223512,3.05032,3278.4,3277.8,0.30509]
[1722272223717,3.05041,3278.3,3277.8,0.30509]
[1722272224453,3.05041,3278.3,3277.5,3.0511]
[1722272224760,3.05041,3278.3,3277.6,3.05095]
[1722272225479,3.05041,3278.3,3277.5,3.05109]
[1722272225480,3.05051,3278.2,3277.5,3.05109]
[1722272225757,3.05055,3278.1,3277.3,5.40712]
[1722272225955,6.10117,3278.1,3277.4,6.591852]
[1722272226154,6.10117,3278.1,3277.4,0.540712]
[1722272226155,3.05055,3278.1,3277.4,0.540712]
[1722272226313,3.05055,3278.1,3277.4,3.05114]
[1722272226513,3.05064,3278.0,3277.3,5.40718]
[1722272226714,3.05053,3278.2,3277.4,3.05119]
[1722272226942,3.60055,3278.1,3277.3,5.40718]
[1722272227109,3.05064,3278.0,3277.3,3.05128]
[1722272227772,3.05075,3277.9,3277.3,3.05128]
[1722272227983,6.05225,3278.1,3276.9,2.97451598]
[1722272227984,3.05113,3277.5,3276.9,2.97451598]
[1722272228136,3.05092,3277.7,3277.0,3.05157]
[1722272228533,3.05086,3277.8,3277.2,3.05137]
[1722272228774,0.55,3277.7,3277.2,3.05137]
[1722272228976,3.60093,3277.7,3277.1,3.05147]
[1722272229146,3.60093,3277.7,3276.0,14.54631673]
[1722272229147,3.05138,3277.2,3276.6,3.05193]
[1722272229352,3.0513,3277.3,3276.7,3.05181]
[1722272229768,3.05172,3276.9,3276.3,2.4479]
[1722272229939,3.356892,3276.9,3276.2,3.05226]
[1722272230136,3.05176,3276.8,3276.0,6.01210673]
[1722272230348,3.05176,3276.8,3276.2,3.05231]
[1722272230589,3.05163,3277.0,3276.2,3.05224]
[1722272230791,3.05142,3277.2,3276.4,3.05211]
[1722272230997,3.05142,3277.2,3276.2,3.05224]
[1722272230998,3.05162,3277.0,3276.3,3.05221]
[1722272231168,3.05167,3276.9,3276.3,3.05221]
[1722272231355,3.05176,3276.8,3276.1,3.05233]
[1722272231756,3.05166,3276.9,3276.2,3.05226]
[1722272231969,3.05166,3276.9,3276.2,3.92810467]
[1722272232192,3.05166,3276.9,3276.3,3.05219]
[1722272232368,3.05192,3276.7,3276.0,2.65386673]
[1722272232825,3.05192,3276.7,3276.0,5.70635673]
[1722272232993,3.05194,3276.6,3276.0,2.65386673]
[1722272233197,3.05209,3276.5,3276.0,2.65386673]
[1722272233532,3.0523,3276.3,3275.6,3.05285]
[1722272233911,3.05232,3276.2,3275.6,3.05285]
[1722272234113,2.4778,3276.1,3275.5,3.05296]
[1722272234320,2.4778,3276.1,3275.3,3.05311]
[1722272234321,2.4778,3276.1,3275.3,3.05307]
[1722272234495,2.4778,3276.1,3275.4,0.305307]
[1722272234824,3.05217,3276.4,3275.4,0.305307]
[1722272235022,0.55,3276.3,3275.5,3.05288]
[1722272235230,2.4989,3276.5,3275.7,3.05272]
[1722272235413,2.4989,3276.5,3275.6,0.06105145]
[1722272235414,3.05196,3276.6,3276.0,3.05247]
[1722272235600,0.55,3276.5,3276.0,3.05247]
[1722272235929,0.55,3276.5,3275.7,3.05273]
[1722272236134,0.55,3276.5,3275.9,3.05253]
[1722272236330,3.613962,3277.2,3276.2,3.05224]
[1722272236494,3.613962,3277.2,3276.0,0.06104821]
[1722272236495,3.05162,3277.0,3276.3,3.11319013]
[1722272236695,3.05162,3277.0,3276.3,0.06104013]
[1722272236889,3.05168,3276.9,3276.3,0.06104013]
[1722272237126,3.05176,3276.8,3276.3,0.06104013]
[1722272237336,3.0,3277.1,3276.3,0.06104013]
[1722272237337,3.05165,3277.0,3276.3,0.06104013]
[1722272237497,3.05165,3277.0,3276.0,3.0525]
[1722272237498,3.05186,3276.7,3276.0,3.0525]
[1722272237830,0.9665702,3277.0,3275.8,3.05263]
[1722272237831,3.5475702,3277.0,3275.8,3.05263]
[1722272237987,0.55,3276.9,3275.8,3.05263]
[1722272238186,3.05209,3276.5,3275.8,3.05263]
[1722272238400,3.05189,3276.7,3275.8,3.05263]
[1722272238631,0.55,3276.6,3276.0,3.05244]
[1722272239139,3.05171,3276.9,3276.0,3.05243]
[1722272239140,0.55,3276.8,3276.0,3.05243]
[1722272239343,3.05191,3276.7,3276.0,3.05243]
[1722272239508,5.46159,3276.5,3275.8,3.05264]
[1722272239711,5.46159,3276.5,3275.1,3.0]
[1722272239712,0.9665702,3277.0,3275.7,2.2636]
[1722272240026,3.0,3277.1,3276.1,3.05234]
[1722272240222,3.0,3277.1,3276.3,3.05221]
[1722272240223,3.05155,3277.1,3276.3,3.05221]
[1722272240392,3.562542,3277.2,3276.4,0.06103925]
[1722272240597,6.613922,3277.2,3276.5,3.05203]
[1722272240821,3.613922,3277.2,3276.5,3.05203]
[1722272241026,0.6613922,3277.1,3276.3,3.05218]
[1722272241235,0.6613922,3277.1,3276.4,3.05206]
[1722272241591,0.6613922,3277.1,3275.7,2.2636]
[1722272241592,3.05178,3276.8,3275.7,2.2636]
[1722272241834,3.05178,3276.8,3276.1,3.05234]
[1722272242047,3.05168,3276.9,3276.1,3.05234]
[1722272242334,2.581,3278.1,3277.0,3.05151]
[1722272242534,2.581,3278.1,3276.9,3.05158]
[1722272242735,3.05105,3277.6,3276.9,6.10317]
[1722272242969,3.05105,3277.6,3276.9,3.05159]
[1722272242970,3.05106,3277.6,3276.9,3.05159]
[1722272243116,0.305106,3277.5,3276.9,3.05159]
[1722272243475,0.305106,3277.5,3276.3,5.45321]
[1722272243476,2.3944,3277.9,3277.2,3.05136]
[1722272244129,2.581,3278.1,3277.5,3.05109]
[1722272244328,3.05045,3278.2,3276.7,0.06102003]
[1722272244680,3.0506,3278.1,3277.3,3.0512]
[1722272244880,3.05083,3277.8,3277.1,3.05139]
[1722272245175,3.05066,3278.0,3277.1,3.05139]
[1722272245176,3.05064,3278.0,3277.2,3.11239008]
[1722272245352,3.05064,3278.0,3277.2,0.67739809]
[1722272245554,3.05064,3278.0,3277.2,0.06102008]
[1722272245756,3.05064,3278.0,3277.2,3.0513]
[1722272245960,3.05064,3278.0,3277.2,6.16363004]
[1722272246259,3.05064,3278.0,3277.2,3.11232004]
[1722272246565,3.05079,3277.9,3277.1,3.05142]
[1722272246725,3.05079,3277.9,3277.2,3.05138]
[1722272246931,3.05079,3277.9,3277.2,3.11240004]
[1722272247242,3.05104,3277.6,3276.9,3.05161]
[1722272247555,3.05104,3277.6,3276.7,3.05177]
[1722272247724,0.55,3277.5,3276.7,3.05177]
[1722272247939,0.55,3277.5,3276.9,3.05165]
[1722272248175,0.55,3277.5,3277.0,3.05156]
[1722272248375,0.55,3277.5,3276.9,3.05165]
[1722272248549,0.55,3277.5,3277.0,3.05156]
[1722272248893,3.05078,3277.9,3277.1,0.06102949]
[1722272249042,0.55,3277.8,3277.1,0.06102949]
[1722272249234,2.58,3278.0,3277.1,0.06102949]
[1722272249235,5.63064,3278.0,3277.1,0.06102949]
[1722272249443,5.63064,3278.0,3276.8,3.05168]
[1722272249444,3.05082,3277.8,3276.8,3.05168]
[1722272249692,0.605082,3277.7,3277.1,3.05141]
[1722272249867,3.05104,3277.6,3277.0,3.05149]
[1722272251382,3.05082,3277.8,3277.1,3.05147]
[1722272251564,0.55,3277.7,3277.0,6.10297]
[1722272251778,4.266142,3277.7,3277.0,3.05148]
[1722272252276,3.05101,3277.6,3277.0,3.05148]
[1722272252681,3.05101,3277.6,3276.6,2.336]
[1722272252898,3.05129,3277.3,3276.7,3.05179]
[1722272253201,0.606619,3277.3,3276.7,3.05179]
[1722272253550,2.657909,3277.3,3276.5,6.10398]
[1722272253769,2.657909,3277.3,3276.6,3.05191]
[1722272253994,3.05138,3277.2,3276.5,3.05195]
[1722272254204,2.657909,3277.3,3276.6,3.05193]
[1722272254490,2.4649,3277.4,3276.7,3.05179]
[1722272254693,5.5161,3277.4,3276.7,3.05179]
[1722272254893,2.4649,3277.4,3276.7,3.05179]
[1722272255401,3.05137,3277.3,3276.5,3.052]
[1722272255698,2.4649,3277.4,3276.2,2.730934]
[1722272255895,3.05173,3276.9,3276.2,3.05226]
[1722272256400,5.5368,3276.7,3275.8,3.05261]
[1722272256565,3.05199,3276.6,3275.9,3.05256]
[1722272256758,2.4849,3276.7,3275.9,3.05252]
[1722272256982,3.05162,3277.0,3276.1,3.05232]
[1722272257192,3.05148,3277.1,3276.4,3.05206]
[1722272257482,0.55,3277.0,3276.4,3.05206]
[1722272257890,0.55,3277.1,3276.5,0.305206]
[1722272258093,0.55,3277.1,3276.5,3.357236]
[1722272258370,3.60149,3277.1,3276.5,3.357236]
[1722272258599,0.55,3277.1,3276.5,3.357236]
[1722272258967,3.05125,3277.4,3276.5,3.357236]
[1722272258968,3.05125,3277.4,3276.5,3.41823333]
[1722272259169,3.05148,3277.1,3276.6,0.34182333]
[1722272259521,3.05148,3277.1,3276.4,3.11310536]
[1722272259803,2.58,3277.5,3276.4,3.11310536]
[1722272259804,5.63115,3277.5,3276.6,3.05194]
[1722272260017,3.05132,3277.3,3276.6,3.05189]
[1722272260195,3.05138,3277.2,3276.6,3.05189]
[1722272260402,3.05138,3277.2,3276.6,3.662288]
[1722272260612,3.05138,3277.2,3276.6,0.610398]
[1722272260794,3.05158,3277.0,3276.3,3.05218]
[1722272260991,3.05166,3276.9,3276.3,3.05218]
[1722272261418,6.10341,3276.9,3276.1,5.36302]
[1722272261631,6.05124,3277.4,3276.1,5.36302]
[1722272261921,3.05172,3276.9,3276.2,3.05229]
[1722272262495,3.05158,3277.0,3276.3,3.05222]
[1722272262699,3.05172,3276.9,3276.2,3.0523]
[1722272262949,3.05176,3276.8,3276.1,6.2351722]
[1722272263142,0.55,3276.7,3275.7,2.3237]
[1722272263433,3.05218,3276.4,3275.7,6.05275]
[1722272263592,5.48039,3276.9,3275.4,3.05298]
[1722272263593,3.0524,3276.2,3275.4,3.05298]
[1722272263801,3.0524,3276.2,3275.3,5.37677]
[1722272263802,3.05252,3276.0,3275.3,3.05307]
[1722272264230,3.05252,3276.0,3275.4,3.05306]
[1722272264855,3.05252,3276.0,3274.8,3.05358]
[1722272264856,3.05293,3275.6,3274.9,3.05346]
[1722272265119,3.05293,3275.6,3274.6,4.07865492]
[1722272265120,3.05306,3275.4,3274.6,5.53895]
[1722272265322,3.05306,3275.4,3274.7,1.287895]
[1722272265538,3.05306,3275.4,3274.6,5.53893]
[1722272265679,3.05306,3275.4,3274.4,3.05395]
[1722272265680,0.55,3275.3,3274.7,3.05371]
[1722272265880,3.60315,3275.3,3274.5,3.05384]
[1722272266081,3.60315,3275.3,3274.6,3.05379]
[1722272266684,0.55,3275.3,3274.6,3.05379]
[1722272266885,3.60315,3275.3,3274.6,3.0538]
[1722272267790,5.63263,3275.9,3274.6,3.0538]
[1722272267791,3.05272,3275.8,3274.7,0.06107014]
[1722272267982,3.05272,3275.8,3274.9,3.05345]
[1722272268186,3.05272,3275.8,3275.0,0.06106117]
[1722272268793,2.58,3275.9,3275.2,3.05324]
[1722272269009,2.3948,3276.0,3275.3,0.0610598]
[1722272269208,2.3948,3276.0,3275.2,3.0532]
[1722272269209,2.3948,3276.0,3275.2,3.05317]
[1722272269412,2.3948,3276.0,3275.1,3.05332]
[1722272269599,3.05279,3275.7,3274.9,3.05345]
[1722272269794,3.05279,3275.7,3274.6,2.4853]
[1722272269795,3.05268,3275.9,3275.1,3.05333]
[1722272269998,5.44731,3276.0,3275.3,3.0531]
[1722272270193,5.44731,3276.0,3275.4,3.053]
[1722272270194,2.3948,3276.0,3275.4,3.053]
[1722272270487,6.05234,3276.2,3275.5,3.05295]
[1722272270698,3.05241,3276.1,3275.4,3.05305]
[1722272271023,3.05258,3276.0,3275.2,3.0532]
[1722272271801,3.05241,3276.1,3275.4,3.05303]
[1722272272003,3.05244,3276.1,3275.2,3.0532]
[1722272272195,6.10529,3275.9,3275.2,3.0532]
[1722272272401,3.05262,3275.9,3275.0,3.05336]
[1722272272624,3.05262,3275.9,3275.1,3.05331]
[1722272272842,3.05262,3275.9,3275.2,3.05322]
[1722272273050,0.55,3276.0,3275.2,3.05317]
[1722272273216,0.55,3276.0,3275.5,3.05295]
[1722272273397,5.63226,3276.3,3275.6,3.05281]
[1722272273743,2.4014,3276.4,3275.6,3.05281]
[1722272273744,2.4014,3276.4,3275.9,3.05253]
[1722272273900,3.05195,3276.6,3276.0,3.05248]
[1722272274107,2.58,3276.7,3276.0,3.05248]
[1722272274443,2.58,3276.7,3276.1,3.05238]
[1722272274648,4.078124,3277.3,3276.1,3.05233]
[1722272274845,2.4894,3277.6,3276.2,0.36626671]
[1722272275003,5.54046,3277.6,3276.9,3.0516]
[1722272275655,3.05111,3277.5,3276.9,3.0516]
[1722272275962,3.05111,3277.5,3276.8,3.05169]
[1722272276327,0.55,3277.4,3276.8,3.05169]
[1722272276528,3.6012,3277.4,3276.8,3.05169]
[1722272276855,4.21026,3277.4,3276.6,3.05186]
[1722272277062,4.21026,3277.4,3276.7,3.05184]
[1722272277217,0.55,3277.4,3276.8,3.05173]
[1722272277417,3.55,3277.4,3276.8,3.05173]
[1722272277621,3.55,3277.4,3276.7,3.05182]
[1722272277828,0.55,3277.4,3276.8,3.05175]
[1722272278357,2.4894,3277.6,3277.0,3.05155]
[1722272278515,5.4894,3277.6,3277.0,3.05155]
[1722272278722,8.54043,3277.6,3277.0,3.05155]
[1722272279371,8.54043,3277.6,3276.9,3.05166]
[1722272279582,8.54043,3277.6,3276.9,3.05159]
[1722272279728,3.0,3277.6,3277.0,0.3661956]
[1722272280051,2.58,3277.9,3276.9,0.06102641]
[1722272280216,3.0505,3278.2,3277.5,3.05108]
[1722272280419,3.0,3278.1,3277.0,3.05149]
[1722272280659,3.0,3278.1,3276.6,2.2741]
[1722272280660,2.58,3277.9,3276.9,3.05163]
[1722272280820,2.58,3277.9,3276.6,2.2741]
[1722272280821,3.05111,3277.5,3276.6,2.2741]
[1722272281028,3.05136,3277.3,3276.7,0.832606]
[1722272281333,3.05136,3277.3,3276.6,3.05192]
[1722272281334,3.0513,3277.3,3276.6,3.05187]
[1722272281660,3.05149,3277.1,3276.5,3.05203]
[1722272281961,3.05144,3277.2,3276.3,3.05214]
[1722272282148,2.58,3277.5,3276.4,3.05204]
[1722272282349,3.05133,3277.3,3276.5,3.05194]
[1722272282521,3.05133,3277.3,3276.6,3.05187]
[1722272283097,3.05148,3277.1,3276.4,3.05206]
[1722272283310,3.05148,3277.1,3276.4,3.3877893]
[1722272283799,6.10271,3277.3,3276.5,3.05196]
[1722272284090,3.05148,3277.1,3276.4,3.3877893]
[1722272284297,3.05148,3277.1,3276.5,0.33877893]
[1722272284592,3.05135,3277.3,3276.5,0.33877893]
[1722272284778,3.60124,3277.4,3276.5,0.33877893]
[1722272284779,3.05138,3277.2,3276.6,3.05192]
[1722272285087,3.05138,3277.2,3276.5,0.33877893]
[1722272285250,6.65251,3277.4,3276.6,3.05187]
[1722272285450,3.05134,3277.3,3276.6,3.05187]
[1722272285887,0.55,3277.4,3276.9,3.05164]
[1722272286107,5.58,3277.9,3277.1,3.05147]
[1722272286254,0.55,3277.8,3277.2,3.05134]
[1722272286448,0.55,3277.8,3276.9,3.05161]
[1722272286449,3.05092,3277.7,3277.0,3.0515]
[1722272286648,3.05101,3277.6,3277.0,0.838671]
[1722272286867,3.05101,3277.6,3276.9,3.11260646]
[1722272287808,3.05092,3277.7,3276.9,3.05158]
[1722272287809,3.05112,3277.5,3276.9,3.05158]
[1722272288016,3.05092,3277.7,3277.0,3.05156]
[1722272288017,6.10191,3277.7,3277.0,3.05156]
[1722272288198,3.05092,3277.7,3277.1,3.05147]
[1722272288396,3.05059,3278.1,3277.3,3.05122]
[1722272288708,3.05059,3278.1,3277.4,3.05114]
[1722272288911,6.10121,3278.1,3277.4,3.05114]
[1722272289074,3.05048,3278.2,3277.4,3.05114]
[1722272289273,2.4961,3278.4,3277.6,3.05101]
[1722272289472,3.05009,3278.6,3277.8,3.05075]
[1722272289668,3.05009,3278.6,3278.0,3.05063]
[1722272290124,5.54604,3278.8,3278.1,3.05054]
[1722272290417,5.54604,3278.8,3278.0,3.05063]
[1722272290418,3.05001,3278.7,3278.0,3.05056]
[1722272290623,3.05001,3278.7,3278.0,3.660694]
[1722272291088,6.09994,3278.8,3278.1,3.05047]
[1722272291410,3.05,3278.7,3278.1,3.05047]
[1722272291617,3.05009,3278.6,3278.0,0.610134]
[1722272291972,3.05009,3278.6,3278.0,3.660734]
[1722272292369,3.04996,3278.8,3278.0,3.660734]
[1722272292577,0.55,3278.7,3278.0,3.660734]
[1722272292970,3.60004,3278.7,3278.1,0.37217407]
[1722272293597,3.04964,3279.1,3278.2,3.11139066]
[1722272293910,3.04952,3279.2,3278.5,3.0501]
[1722272294410,0.304952,3279.1,3278.4,3.0502]
[1722272294616,0.304952,3279.1,3278.2,3.0504]
[1722272294813,3.04986,3278.9,3278.1,3.42270407]
[1722272294990,3.04986,3278.9,3278.2,3.05045]
[1722272295188,3.04986,3278.9,3278.3,3.05035]
[1722272295799,6.09974,3278.9,3278.1,3.42263407]
[1722272296110,6.09974,3278.9,3277.7,3.05088]
[1722272296111,3.05013,3278.6,3277.9,3.05068]
[1722272296282,3.05013,3278.6,3277.5,3.31121588]
[1722272296283,3.05049,3278.2,3277.5,3.05108]
[1722272296483,3.05055,3278.1,3277.5,3.05108]
[1722272296698,3.05067,3278.0,3277.4,3.05119]
[1722272297015,5.4636,3278.8,3277.1,2.3203]
[1722272297016,3.05084,3277.8,3277.1,5.37177]
[1722272297384,3.05098,3277.7,3277.0,3.05149]
[1722272297714,3.05098,3277.7,3276.8,3.05171]
[1722272297876,3.05098,3277.7,3276.7,7.34]
[1722272297877,5.795,3278.0,3276.1,2.2969]
[1722272298072,3.0514,3277.2,3276.5,3.05198]
[1722272298507,3.0514,3277.2,3276.4,3.05206]
[1722272298508,3.05153,3277.1,3276.4,3.05206]
[1722272298672,3.05136,3277.3,3276.5,3.357226]
[1722272299111,3.05139,3277.2,3276.5,3.357226]
[1722272299318,3.05166,3276.9,3276.5,0.305206]
[1722272299610,3.05166,3276.9,3276.3,3.05215]
[1722272299847,3.05166,3276.9,3276.2,3.05231]
[1722272300110,3.05174,3276.9,3276.2,3.05222]
[1722272300272,3.05177,3276.8,3276.2,3.662687]
[1722272300481,3.05196,3276.6,3275.8,3.05265]
[1722272300679,3.05196,3276.6,3275.8,6.10528]
[1722272300913,3.05196,3276.6,3275.9,3.05259]
[1722272301318,3.05204,3276.5,3275.6,5.48783]
[1722272301518,3.05215,3276.4,3275.7,3.908503]
[1722272301719,3.05185,3276.7,3275.8,3.05266]
[1722272301887,0.55,3276.6,3276.0,3.05241]
[1722272302215,0.55,3276.6,3275.9,0.06104523]
[1722272302216,3.05157,3277.0,3276.3,3.05216]
[1722272302432,3.0,3277.4,3276.1,0.06104242]
[1722272302433,3.05182,3276.8,3276.1,3.05233]
[1722272302591,3.05187,3276.7,3275.9,3.05252]
[1722272302926,3.05215,3276.4,3275.7,0.855783]
[1722272303149,2.58,3277.2,3275.8,3.05268]
[1722272303150,3.05195,3276.6,3275.8,3.05268]
[1722272303366,3.05195,3276.6,3275.9,3.05259]
[1722272304032,3.05195,3276.6,3275.8,0.854049]
[1722272304343,3.05178,3276.8,3276.0,3.05244]
[1722272304498,3.05178,3276.8,3275.8,3.05264]
[1722272304499,3.052,3276.6,3275.9,3.05252]
[1722272305019,3.05168,3276.9,3275.6,2.435]
[1722272305226,3.05168,3276.9,3275.8,3.05264]
[1722272305405,3.0519,3276.7,3275.8,3.05264]
[1722272305632,3.05237,3276.2,3275.5,3.05294]
[1722272306574,3.05241,3276.1,3275.5,3.05294]
[1722272306772,3.05241,3276.1,3275.3,3.05307]
[1722272306943,0.55,3276.6,3275.6,3.05286]
[1722272306944,3.05208,3276.5,3275.6,3.05286]
[1722272307126,3.05233,3276.2,3275.6,3.05286]
[1722272307557,3.60213,3276.4,3275.6,3.05278]
[1722272307870,3.05223,3276.3,3275.6,3.05286]
[1722272308178,3.05269,3275.8,3275.2,3.05321]
[1722272308972,3.05258,3276.0,3275.3,3.05314]
[1722272309277,3.05229,3276.3,3275.5,3.05288]
[1722272309474,3.05215,3276.4,3275.5,0.67775561]
[1722272309672,0.55,3276.3,3275.7,3.0527]
[1722272309842,3.60225,3276.3,3275.7,3.0527]
[1722272310236,0.55,3276.3,3275.8,3.05268]
[1722272310470,0.55,3276.4,3275.8,3.05268]
[1722272310783,3.60213,3276.4,3275.8,3.05268]
[1722272311286,3.05178,3276.8,3276.0,3.05244]
[1722272311574,3.0,3276.7,3275.8,3.3639831]
[1722272311730,5.7870881,3277.1,3275.6,0.06104637]
[1722272311731,3.05219,3276.4,3275.6,0.06104637]
[1722272311931,5.7870881,3277.1,3275.4,3.053]
[1722272311932,3.05242,3276.1,3275.4,3.053]
[1722272312177,3.05223,3276.3,3275.6,3.0528]
[1722272312386,3.05223,3276.3,3275.6,3.05281]
[1722272312678,3.05246,3276.1,3275.4,3.05298]
[1722272312830,3.05246,3276.1,3275.3,3.05315]
[1722272313043,3.05246,3276.1,3275.1,2.4521]
[1722272313044,3.05264,3275.9,3275.2,3.05324]
[1722272313567,6.10531,3275.9,3275.2,3.05324]
[1722272313733,0.55,3276.0,3275.3,0.06105695]
[1722272313935,3.60256,3276.0,3275.3,0.06105695]
[1722272314243,3.60256,3276.0,3275.5,3.05295]
[1722272314244,0.55,3276.0,3275.5,3.05295]
[1722272314448,0.55,3276.1,3275.5,3.05295]
[1722272314976,3.05223,3276.3,3275.7,3.05272]
[1722272315196,2.3578,3276.7,3275.7,3.11376854]
[1722272315351,3.05227,3276.3,3275.7,3.11376854]
[1722272315547,3.05241,3276.1,3275.5,3.663492]
[1722272315861,3.05241,3276.1,3275.3,3.0531]
[1722272316083,3.05241,3276.1,3275.3,3.05308]
[1722272316229,3.05241,3276.1,3275.3,3.11413674]
[1722272316429,3.05252,3276.0,3275.3,3.11413674]
[1722272316681,3.05252,3276.0,3275.3,3.05308]
[1722272316885,3.05272,3275.8,3275.1,5.50538]
[1722272317064,5.63217,3276.4,3275.1,5.50538]
[1722272317065,5.63217,3276.4,3275.3,3.05314]
[1722272317265,3.05255,3276.0,3275.3,3.05314]
[1722272317590,3.05255,3276.0,3275.3,3.11413617]
[1722272317751,6.10474,3276.2,3275.6,3.05285]
[1722272317953,0.55,3276.1,3275.6,3.05285]
[1722272318188,3.60243,3276.1,3275.5,3.05296]
[1722272318330,3.60243,3276.1,3275.5,3.66967162]
[1722272318681,3.05208,3276.5,3275.6,3.05286]
[1722272318860,3.05231,3276.2,3275.6,3.05286]
[1722272319177,3.05234,3276.2,3275.6,3.05286]
[1722272319376,3.05243,3276.1,3275.6,0.67225416]
[1722272319584,3.05243,3276.1,3275.5,3.0529]
[1722272319879,3.05251,3276.0,3275.4,3.05297]
[1722272320038,3.05251,3276.0,3275.2,3.05316]
[1722272320039,3.0526,3275.9,3275.2,3.05316]
[1722272320238,3.05251,3276.0,3275.3,0.550526]
[1722272320239,3.0527,3275.8,3275.3,0.550526]
[1722272320491,3.05251,3276.0,3275.2,3.05316]
[1722272320720,3.05251,3276.0,3275.4,3.05304]
[1722272321051,3.05237,3276.2,3275.5,3.05296]
[1722272321253,3.60242,3276.1,3275.5,3.05296]
[1722272321450,3.05242,3276.1,3275.5,3.05296]
[1722272321786,3.05242,3276.1,3275.5,3.66356]
[1722272322085,3.05251,3276.0,3275.2,3.05316]
[1722272322240,3.05251,3276.0,3275.3,3.0531]
[1722272322446,3.05271,3275.8,3275.1,5.50536]
[1722272322978,3.05236,3276.2,3275.2,3.05319]
[1722272323175,3.05236,3276.2,3275.1,2.4521]
[1722272323176,3.60244,3276.1,3275.5,3.0529]
[1722272323362,3.60244,3276.1,3275.6,3.05287]
[1722272323754,8.40967,3276.7,3275.7,0.06105572]
[1722272323755,5.3578,3276.7,3275.7,0.06105572]
[1722272323952,3.05218,3276.4,3275.7,3.11376572]
[1722272324189,3.05218,3276.4,3275.7,6.16649572]
[1722272324336,3.05218,3276.4,3275.9,3.05259]
[1722272324849,3.052,3276.6,3275.9,3.05259]
[1722272325050,3.052,3276.6,3276.1,3.05239]
[1722272325680,5.58,3277.0,3276.1,3.05239]